bitfinex-derivatives/quotes_BTCF0:USTF0_20210406
["timestamp","ask_amount","ask_price","bid_price","bid_amount"]
[1617749769743,2.34215905,57957.0,57956.0,0.73458417]
[1617749770347,2.84818275,57957.0,57956.0,0.30600914]
[1617749770948,2.84818275,57957.0,57954.0,0.30629407]
[1617749772048,1.61895488,57955.0,57954.0,0.30629407]
[1617749772246,2.61895488,57955.0,57954.0,0.30629407]
[1617749772648,2.86447713,57955.0,57953.0,0.30630043]
[1617749773047,1.8643939,57954.0,57953.0,0.30630043]
[1617749773449,1.8643939,57954.0,57952.0,0.30630382]
[1617749773849,2.8643939,57954.0,57952.0,0.30630382]
[1617749774050,2.11267876,57953.0,57952.0,0.30630382]
[1617749774252,2.86391674,57953.0,57952.0,0.30630382]
[1617749774751,2.35820431,57953.0,57952.0,0.30630382]
[1617749777555,2.86406233,57953.0,57952.0,0.30630382]
[1617749777954,4.36406233,57953.0,57952.0,0.30630382]
[1617749778155,9.36406233,57953.0,57952.0,0.30630382]
[1617749778354,9.36406233,57953.0,57950.0,0.30637569]
[1617749778555,0.10725655,57951.0,57950.0,0.30637569]
[1617749778754,1.60725655,57951.0,57949.0,0.30637913]
[1617749779254,1.60725655,57951.0,57947.0,0.3063818]
[1617749779255,2.23127953,57950.0,57947.0,0.3063818]
[1617749779453,1.5,57949.0,57947.0,0.3063818]
[1617749779655,1.86258101,57948.0,57946.0,0.30638059]
[1617749779853,3.36258101,57948.0,57946.0,0.30638059]
[1617749780054,4.36258101,57948.0,57946.0,0.30638059]
[1617749780255,1.86241899,57947.0,57946.0,0.30638059]
[1617749780555,1.72547187,57947.0,57942.0,0.305698]
[1617749780956,0.6656018,57943.0,57941.0,0.30569602]
[1617749781157,0.8199518,57943.0,57941.0,0.30569602]
[1617749781555,0.8199518,57943.0,57942.0,0.30569507]
[1617749781956,1.06548529,57943.0,57942.0,0.30569507]
[1617749782156,2.06548529,57943.0,57942.0,0.30569507]
[1617749782758,2.17274184,57943.0,57942.0,0.30569507]
[1617749785864,2.61624534,57943.0,57939.0,0.3057211]
[1617749786465,0.6651791,57940.0,57938.0,0.30572036]
[1617749787467,0.66523076,57939.0,57936.0,0.36683471]
[1617749787667,1.66523076,57939.0,57936.0,0.36683471]
[1617749787866,1.66523076,57939.0,57938.0,0.30570442]
[1617749787867,1.91077158,57939.0,57938.0,0.30570442]
[1617749788266,0.91077158,57939.0,57938.0,0.30570442]
[1617749788468,0.91077158,57939.0,57937.0,0.30570696]
[1617749788668,1.91077158,57939.0,57937.0,0.30570696]
[1617749788871,1.66523076,57939.0,57937.0,0.30570696]
[1617749789268,1.0,57938.0,57937.0,0.30570696]
[1617749789469,1.91067597,57938.0,57935.0,0.36691935]
[1617749789869,0.66508745,57936.0,57935.0,0.36691935]
[1617749790270,0.30232164,57936.0,57935.0,0.67267856]
[1617749790671,0.40957819,57936.0,57935.0,0.67267856]
[1617749791172,1.01779265,57936.0,57935.0,0.67267856]
[1617749791372,2.01779265,57936.0,57935.0,0.67267856]
[1617749792272,1.40957819,57936.0,57935.0,0.30575921]
[1617749793073,1.77188471,57936.0,57934.0,0.30545449]
[1617749793473,0.30193437,57935.0,57934.0,0.30545449]
[1617749794280,0.66411841,57935.0,57933.0,0.4515]
[1617749794877,0.30183271,57934.0,57933.0,0.4515]
[1617749795276,1.30183271,57934.0,57933.0,0.4515]
[1617749795477,1.54738073,57934.0,57933.0,0.4515]
[1617749796078,1.30183271,57934.0,57933.0,0.4515]
[1617749797080,1.30183271,57934.0,57933.0,0.75695318]
[1617749799984,1.30183271,57934.0,57933.0,0.4515]
[1617749805493,2.80183271,57934.0,57933.0,0.4515]
[1617749805693,7.80183271,57934.0,57933.0,0.4515]
[1617749806193,8.6049924,57934.0,57933.0,0.4515]
[1617749806394,8.8049924,57934.0,57933.0,0.4515]
[1617749806993,8.8049924,57934.0,57922.0,0.30525231]
[1617749807194,9.17338278,57934.0,57922.0,0.30525231]
[1617749807394,1.13723,57923.0,57922.0,0.30525231]
[1617749807594,1.13723,57923.0,57921.0,0.30526105]
[1617749807595,1.14736339,57923.0,57921.0,0.30526105]
[1617749807995,1.43829562,57923.0,57920.0,0.30526399]
[1617749808193,1.0,57922.0,57920.0,0.30526399]
[1617749808395,1.01013235,57922.0,57920.0,0.30526399]
[1617749808594,1.0,57921.0,57920.0,0.30526399]
[1617749808798,1.11237318,57921.0,57918.0,0.36631586]
[1617749809200,1.11237318,57921.0,57920.0,0.3052645]
[1617749809398,0.11237318,57921.0,57920.0,0.3052645]
[1617749809799,1.11237318,57921.0,57920.0,0.3052645]
[1617749811704,1.11739458,57921.0,57920.0,0.3052645]
[1617749812101,1.10725655,57921.0,57920.0,0.3052645]
[1617749812302,1.40842013,57921.0,57920.0,0.3052645]
[1617749812704,1.40842013,57921.0,57917.0,0.30539326]
[1617749812902,1.55192013,57921.0,57917.0,0.30539326]
[1617749813104,1.91312911,57921.0,57916.0,0.30539311]
[1617749813705,1.91312911,57921.0,57912.0,0.30477922]
[1617749813706,0.00210212,57918.0,57912.0,0.30477922]
[1617749814406,0.00210212,57918.0,57911.0,0.30478111]
[1617749814805,0.10725655,57912.0,57911.0,0.30478111]
[1617749815006,1.10725655,57912.0,57911.0,0.30478111]
[1617749819109,1.10725655,57912.0,57909.0,0.30478948]
[1617749820009,1.10725655,57912.0,57910.0,0.30478943]
[1617749820609,1.0,57911.0,57909.0,0.30478999]
[1617749822610,1.0,57910.0,57909.0,0.30478999]
[1617749823911,1.0,57910.0,57906.0,0.36576211]
[1617749824314,0.10725655,57912.0,57909.0,0.30479976]
[1617749825514,0.10725655,57912.0,57908.0,0.30457512]
[1617749826313,1.0,57909.0,57908.0,0.30457512]
[1617749828715,1.0,57909.0,57907.0,0.30457631]
[1617749829315,1.0,57908.0,57907.0,0.30457631]
[1617749829717,1.0,57908.0,57906.0,0.06141001]
[1617749830117,1.0,57908.0,57907.0,0.67137598]
[1617749832519,1.0,57908.0,57907.0,0.3051709]
[1617749832917,1.0,57908.0,57907.0,0.73283567]
[1617749833418,1.0,57908.0,57907.0,0.3051709]
[1617749833919,1.0,57908.0,57907.0,0.36658896]
[1617749834624,1.0,57908.0,57907.0,0.3051709]
[1617749838024,1.0,57908.0,57906.0,0.30507531]
[1617749838625,1.0,57907.0,57906.0,0.30507531]
[1617749840728,1.0,57907.0,57905.0,0.36632994]
[1617749840928,0.10725655,57906.0,57905.0,0.36632994]
[1617749841530,0.10725655,57906.0,57905.0,0.67160463]
[1617749841930,1.10725655,57906.0,57905.0,0.67160463]
[1617749844534,1.10725655,57906.0,57905.0,0.30527469]
[1617749847938,1.25310655,57906.0,57905.0,0.30527469]
[1617749849841,1.25521162,57906.0,57905.0,0.30527469]
[1617749851141,1.25521162,57906.0,57901.0,0.4882]
[1617749851142,1.25821791,57906.0,57904.0,0.30531449]
[1617749852143,1.55414014,57906.0,57905.0,0.30564307]
[1617749854848,1.55414014,57906.0,57901.0,0.4882]
[1617749854849,1.91522272,57906.0,57904.0,0.30566512]
[1617749855250,1.91522272,57906.0,57902.0,0.30566577]
[1617749855451,1.0,57905.0,57902.0,0.30566577]
[1617749855649,1.0,57905.0,57901.0,0.4882]
[1617749855650,1.90756023,57905.0,57901.0,0.4882]
[1617749856150,0.30092699,57903.0,57901.0,0.4882]
[1617749856350,1.0,57902.0,57901.0,0.4882]
[1617749856550,1.30095001,57902.0,57901.0,0.4882]
[1617749857151,1.30095001,57902.0,57901.0,0.79386971]
[1617749857851,1.40446001,57902.0,57901.0,0.79386971]
[1617749858053,1.40446001,57902.0,57901.0,0.4882]
[1617749858453,1.76518761,57902.0,57901.0,0.4882]
[1617749860658,2.20585115,57902.0,57901.0,0.4882]
[1617749861655,1.20585115,57902.0,57901.0,0.4882]
[1617749861855,7.20585115,57902.0,57901.0,0.4882]
[1617749862560,8.32178769,57902.0,57901.0,0.4882]
[1617749862856,8.32178769,57902.0,57893.0,0.3062808]
[1617749863057,8.32178769,57902.0,57892.0,0.30627786]
[1617749863058,0.10725655,57894.0,57892.0,0.30627786]
[1617749863658,1.10312438,57893.0,57892.0,0.30627786]
[1617749864060,7.54890555,57893.0,57889.0,0.30630154]
[1617749864259,1.5,57892.0,57889.0,0.30630154]
[1617749864661,6.0,57890.0,57886.0,0.30633144]
[1617749864858,6.15237,57890.0,57886.0,0.30633144]
[1617749865061,6.15237,57890.0,57881.0,0.30634251]
[1617749865062,0.10725655,57887.0,57881.0,0.30634251]
[1617749865460,1.10090191,57882.0,57880.0,0.3063511]
[1617749866061,0.24582094,57886.0,57878.0,0.3063681]
[1617749866062,1.10053913,57881.0,57878.0,0.3063681]
[1617749866261,2.10053913,57881.0,57878.0,0.3063681]
[1617749866461,2.34637253,57881.0,57877.0,0.30636663]
[1617749866662,1.0,57879.0,57877.0,0.30636663]
[1617749866862,0.66037852,57878.0,57875.0,0.36764172]
[1617749867263,0.10725655,57876.0,57874.0,0.36764727]
[1617749867864,0.90668089,57875.0,57874.0,0.36764727]
[1617749868265,0.90668089,57875.0,57874.0,0.67401693]
[1617749868665,1.90668089,57875.0,57874.0,0.67401693]
[1617749869465,1.0,57875.0,57872.0,0.60455655]
[1617749870765,1.0,57875.0,57872.0,0.90934911]
[1617749871366,0.10725655,57876.0,57874.0,0.30478525]
[1617749871565,0.10725655,57876.0,57874.0,0.10261]
[1617749871765,0.10725655,57876.0,57874.0,0.40739448]
[1617749872368,0.10725655,57876.0,57875.0,0.30478434]
[1617749872767,0.10725655,57876.0,57874.0,0.40739449]
[1617749873166,0.10725655,57876.0,57875.0,0.30478318]
[1617749873767,0.10725655,57876.0,57872.0,0.97029637]
[1617749873768,0.10725655,57876.0,57873.0,0.30470234]
[1617749873967,1.10725655,57876.0,57873.0,0.30470234]
[1617749874370,1.0,57874.0,57873.0,0.30470234]
[1617749874569,1.0,57874.0,57872.0,0.4973]
[1617749876171,1.0,57873.0,57872.0,0.4973]
[1617749876368,0.10725655,57876.0,57872.0,0.4973]
[1617749876569,1.0,57873.0,57872.0,0.4973]
[1617749883573,1.10725655,57876.0,57872.0,0.62283]
[1617749883774,0.10725655,57876.0,57873.0,0.2]
[1617749883974,0.00208993,57882.0,57874.0,1.5]
[1617749884179,1.0,57886.0,57875.0,0.2]
[1617749884372,1.00209168,57887.0,57875.0,1.7]
[1617749884573,0.00209168,57887.0,57875.0,1.7]
[1617749884774,1.00209286,57891.0,57877.0,0.3044164]
[1617749884975,1.00209286,57891.0,57878.0,1.5]
[1617749885175,1.0,57891.0,57889.0,0.10725655]
[1617749885372,1.0,57891.0,57889.0,0.20953655]
[1617749887174,0.10725655,57890.0,57889.0,0.20953655]
[1617749894790,0.10725655,57890.0,57883.0,0.30467594]
[1617749894983,1.10725655,57890.0,57883.0,0.30467594]
[1617749895184,1.10725655,57890.0,57882.0,0.30468231]
[1617749895384,0.10725655,57884.0,57882.0,0.30468231]
[1617749895596,0.10725655,57884.0,57878.0,0.30480394]
[1617749896185,0.10725655,57884.0,57876.0,0.30481661]
[1617749896384,1.0,57879.0,57876.0,0.30481661]
[1617749896586,1.11068,57879.0,57876.0,0.30481661]
[1617749897195,1.11068,57879.0,57875.0,0.30481571]
[1617749897386,0.10725655,57877.0,57875.0,0.30481571]
[1617749897587,0.10725655,57877.0,57874.0,0.30481734]
[1617749897885,0.10725655,57877.0,57876.0,0.27]
[1617749898288,1.10725655,57877.0,57874.0,0.30481734]
[1617749898690,1.20439655,57877.0,57874.0,0.30481734]
[1617749899091,1.0,57875.0,57874.0,0.30481734]
[1617749899490,1.0,57875.0,57872.0,0.4973]
[1617749899891,1.0,57873.0,57872.0,0.4973]
[1617749904897,1.13249,57873.0,57872.0,0.4973]
[1617749906802,1.13249,57873.0,57872.0,0.80272488]
[1617749908201,1.13249,57873.0,57872.0,0.74682488]
[1617749911605,1.0,57873.0,57872.0,0.74682488]
[1617749915807,1.0,57873.0,57872.0,1.11345861]
[1617749917808,1.00510612,57873.0,57872.0,1.56266101]
[1617749918207,1.01011113,57873.0,57872.0,1.56266101]
[1617749919608,1.0,57873.0,57872.0,1.56266101]
[1617749919908,1.01011026,57873.0,57872.0,1.56266101]
[1617749920509,1.30038222,57873.0,57872.0,1.11345861]
[1617749922311,1.30038222,57873.0,57872.0,1.56268581]
[1617749922714,1.30038222,57873.0,57872.0,1.11345861]
[1617749923412,1.30038222,57873.0,57872.0,1.23588861]
[1617749925215,1.30038222,57873.0,57872.0,1.11345861]
[1617749926015,1.30038222,57873.0,57872.0,1.22787861]
[1617749926817,1.30038222,57873.0,57872.0,1.67721698]
[1617749927518,1.30038222,57873.0,57872.0,1.78447353]
[1617749927722,1.01012331,57873.0,57872.0,1.78447353]
[1617749928521,1.00511304,57873.0,57872.0,1.78447353]
[1617749930922,1.00511304,57873.0,57872.0,1.67721698]
[1617749931324,1.01012029,57873.0,57872.0,1.67721698]
[1617749931724,1.30067913,57873.0,57872.0,1.56279698]
[1617749932426,1.30067913,57873.0,57872.0,1.11345861]
[1617749933728,0.30067913,57873.0,57872.0,1.11345861]
[1617749933929,1.30067913,57873.0,57872.0,1.11345861]
[1617749934332,1.66126374,57873.0,57872.0,1.11345861]
[1617749934932,0.90708388,57873.0,57872.0,1.11345861]
[1617749935130,1.90708388,57873.0,57872.0,1.11345861]
[1617749935332,1.30067913,57873.0,57872.0,1.11345861]
[1617749935532,1.30067913,57873.0,57872.0,1.22071516]
[1617749935731,1.30067913,57873.0,57872.0,1.66997106]
[1617749936132,1.01012272,57873.0,57872.0,1.66997106]
[1617749936532,0.30077497,57874.0,57872.0,1.66997106]
[1617749937133,0.0101279,57874.0,57873.0,1.18491882]
[1617749937533,1.0101279,57874.0,57873.0,1.18491882]
[1617749938137,1.30089556,57874.0,57873.0,1.18491882]
[1617749940538,1.30089556,57874.0,57873.0,0.7355322]
[1617749941338,1.66150189,57874.0,57873.0,0.7355322]
[1617749941937,1.66150189,57874.0,57873.0,0.8420222]
[1617749942340,1.30089556,57874.0,57873.0,0.8420222]
[1617749942739,0.30089556,57874.0,57873.0,0.8420222]
[1617749943539,0.30073031,57875.0,57873.0,1.29128911]
[1617749943740,0.30073031,57875.0,57873.0,1.39854566]
[1617749943943,0.0101239,57874.0,57873.0,1.39854566]
[1617749944840,0.00511312,57874.0,57873.0,1.39854566]
[1617749945440,0.01012589,57874.0,57873.0,1.39854566]
[1617749948841,0.00210718,57874.0,57873.0,1.39854566]
[1617749949441,0.00511744,57875.0,57873.0,1.39854566]
[1617749949643,1.0,57874.0,57873.0,1.39854566]
[1617749950045,1.0,57874.0,57873.0,0.10725655]
[1617749950447,1.3009983,57874.0,57873.0,1.23075927]
[1617749951346,1.3009983,57874.0,57873.0,1.29221107]
[1617749953049,1.66278763,57874.0,57873.0,1.29221107]
[1617749958464,2.10588523,57874.0,57873.0,1.29221107]
[1617749959259,2.10588523,57874.0,57873.0,1.18495452]
[1617749964773,1.66278763,57874.0,57873.0,1.18495452]
[1617749964972,1.66278763,57874.0,57872.0,0.4414]
[1617749965373,1.66278763,57874.0,57873.0,1.21785946]
[1617749965773,1.66278763,57874.0,57873.0,1.12568151]
[1617749967176,2.10638403,57874.0,57873.0,1.12568151]
[1617749968876,1.66278763,57874.0,57873.0,1.12568151]
[1617749969977,2.10652297,57874.0,57873.0,1.12568151]
[1617749970278,1.66278763,57874.0,57873.0,1.12568151]
[1617749970979,0.66278763,57874.0,57873.0,1.12568151]
[1617749971179,0.66278763,57874.0,57873.0,0.81867746]
[1617749971382,1.66278763,57874.0,57873.0,0.81867746]
[1617749971981,0.66278763,57874.0,57873.0,0.81867746]
[1617749974882,0.66278763,57874.0,57873.0,1.33036209]
[1617749975484,1.66278763,57874.0,57873.0,0.81867746]
[1617749977485,1.0,57874.0,57872.0,0.4414]
[1617749978087,0.66507932,57873.0,57872.0,0.4414]
[1617749978886,0.66507932,57873.0,57872.0,1.26008109]
[1617749979289,1.10843744,57873.0,57872.0,1.26008109]
[1617749979687,2.10843744,57873.0,57872.0,1.26008109]
[1617749984394,2.10843744,57873.0,57872.0,1.38283109]
[1617749984593,1.66507932,57873.0,57872.0,1.38283109]
[1617749985896,2.10841294,57873.0,57872.0,1.38283109]
[1617749987096,0.66507932,57873.0,57872.0,1.38283109]
[1617749987896,0.66507932,57873.0,57872.0,1.49008764]
[1617749988599,0.91088732,57873.0,57872.0,1.49008764]
[1617749989099,0.66507932,57873.0,57872.0,1.49008764]
[1617749989501,0.91088858,57873.0,57872.0,1.49008764]
[1617749989899,0.66507932,57873.0,57872.0,1.49008764]
[1617749990299,0.91088397,57873.0,57872.0,1.49008764]
[1617749990699,0.66507932,57873.0,57872.0,2.00179093]
[1617749991100,0.66507932,57873.0,57872.0,3.50179093]
[1617749991703,0.30231794,57873.0,57872.0,3.59396292]
[1617749992106,0.01019056,57873.0,57872.0,3.59396292]
[1617749993003,0.01019056,57873.0,57872.0,2.82628183]
[1617749993402,0.01019056,57873.0,57872.0,3.64494537]
[1617749994105,0.01019056,57873.0,57872.0,3.59394537]
[1617749994505,0.01019056,57873.0,57872.0,2.09394537]
[1617749995309,0.3027272,57873.0,57872.0,2.00177338]
[1617750001418,0.3027272,57873.0,57872.0,3.50177338]
[1617750002219,0.01018698,57873.0,57872.0,3.59394443]
[1617750002621,0.30266318,57873.0,57872.0,3.59394443]
[1617750002819,0.30266318,57873.0,57872.0,2.09394443]
[1617750003421,0.30266318,57873.0,57872.0,2.00177338]
[1617750005724,0.66560811,57873.0,57872.0,2.00177338]
[1617750006124,0.91140488,57873.0,57872.0,2.00177338]
[1617750006422,0.66560811,57873.0,57872.0,2.00177338]
[1617750006924,0.9114042,57873.0,57872.0,2.00177338]
[1617750009331,0.30266318,57873.0,57872.0,2.00177338]
[1617750013535,0.30266318,57873.0,57872.0,1.89451683]
[1617750014337,0.66566983,57873.0,57872.0,1.38281354]
[1617750014537,0.66566983,57873.0,57872.0,1.26006354]
[1617750015337,0.91147287,57873.0,57872.0,1.26006354]
[1617750015838,0.66566983,57873.0,57872.0,1.26006354]
[1617750016240,0.91150476,57873.0,57872.0,1.26006354]
[1617750017142,0.54849811,57873.0,57872.0,1.77168673]
[1617750017540,0.30266318,57873.0,57872.0,1.77168673]
[1617750018142,0.30266318,57873.0,57872.0,1.87894328]
[1617750019743,0.30266318,57873.0,57872.0,1.97113033]
[1617750022347,0.6658739,57873.0,57872.0,1.97113033]
[1617750022748,0.6658739,57873.0,57872.0,1.26006354]
[1617750023351,0.91170846,57873.0,57872.0,1.26006354]
[1617750023552,1.02572846,57873.0,57872.0,1.26006354]
[1617750023850,0.7798939,57873.0,57872.0,1.26006354]
[1617750024449,1.02572962,57873.0,57872.0,1.26006354]
[1617750026153,0.91170962,57873.0,57872.0,1.87894076]
[1617750027151,0.5484989,57873.0,57872.0,1.87894076]
[1617750027552,0.30266318,57873.0,57872.0,1.87894076]
[1617750028353,0.30266318,57873.0,57872.0,1.06027722]
[1617750028554,0.10725655,57874.0,57872.0,0.54865655]
[1617750029153,0.60447752,57873.0,57872.0,0.54865655]
[1617750029554,0.60447752,57873.0,57872.0,1.51055039]
[1617750033057,0.30270805,57873.0,57872.0,1.51055039]
[1617750034457,0.30270805,57873.0,57872.0,1.61347039]
[1617750036365,0.30270805,57873.0,57872.0,3.11347039]
[1617750036961,0.30270805,57873.0,57872.0,3.20565786]
[1617750039167,0.01020032,57873.0,57872.0,3.20565786]
[1617750039564,0.30308082,57874.0,57872.0,3.20565786]
[1617750040066,0.55166504,57881.0,57873.0,1.05421878]
[1617750040264,0.55166504,57881.0,57880.0,0.10725655]
[1617750040465,0.55166504,57881.0,57880.0,0.5575748]
[1617750040866,0.85469638,57881.0,57880.0,0.5575748]
[1617750044169,0.85469638,57881.0,57880.0,0.55757274]
[1617750045067,1.10052572,57881.0,57880.0,0.61903008]
[1617750053175,0.65611723,57881.0,57880.0,0.61903008]
[1617750054475,1.07052344,57881.0,57880.0,0.98745116]
[1617750054676,1.01952344,57881.0,57880.0,0.98745116]
[1617750055076,0.7164921,57881.0,57880.0,0.98745116]
[1617750055278,1.01936803,57881.0,57880.0,0.98745116]
[1617750055477,0.7164921,57881.0,57880.0,0.98745116]
[1617750056078,1.01937663,57881.0,57880.0,0.98745116]
[1617750056479,0.77354729,57881.0,57880.0,0.98745116]
[1617750056880,1.01937528,57881.0,57880.0,0.98745116]
[1617750057485,1.46368377,57881.0,57880.0,0.98745116]
[1617750061887,1.01937528,57881.0,57880.0,0.98745116]
[1617750063388,1.4635777,57881.0,57880.0,0.98745116]
[1617750067294,1.6231777,57881.0,57880.0,0.88019461]
[1617750067494,1.6231777,57881.0,57880.0,0.42987842]
[1617750067695,2.6231777,57881.0,57880.0,0.42987842]
[1617750068095,2.6231777,57881.0,57872.0,0.4414]
[1617750068096,1.46685655,57881.0,57872.0,0.4414]
[1617750068295,0.10725655,57873.0,57872.0,0.4414]
[1617750068696,1.21607631,57873.0,57872.0,0.4414]
[1617750068897,2.21607631,57873.0,57872.0,0.4414]
[1617750069097,2.46193692,57873.0,57872.0,0.8098115]
[1617750069698,2.96554198,57873.0,57872.0,0.8098115]
[1617750069996,3.16554198,57873.0,57872.0,0.8098115]
[1617750070198,3.16554198,57873.0,57872.0,0.4414]
[1617750073897,1.30725655,57873.0,57872.0,0.4414]
[1617750074500,2.91682082,57873.0,57872.0,0.4414]
[1617750078703,8.85947735,57873.0,57872.0,0.4414]
[1617750079104,5.35947735,57873.0,57872.0,0.4414]
[1617750079304,10.41057735,57873.0,57872.0,0.4414]
[1617750079505,10.35947735,57873.0,57872.0,0.4414]
[1617750079706,9.78568642,57873.0,57872.0,0.4414]
[1617750080105,10.35947581,57873.0,57872.0,0.4414]
[1617750080708,4.35947581,57873.0,57872.0,0.4414]
[1617750080906,5.35947581,57873.0,57872.0,0.4414]
[1617750081307,3.85947581,57873.0,57872.0,0.4414]
[1617750081709,2.91682082,57873.0,57872.0,0.4414]
[1617750082110,3.28568226,57873.0,57872.0,0.4414]
[1617750082509,2.91682082,57873.0,57872.0,0.4414]
[1617750084113,3.02742082,57873.0,57872.0,0.4414]
[1617750084315,3.02742082,57873.0,57854.0,0.36719712]
[1617750084714,0.3003218,57855.0,57851.0,0.36716373]
[1617750084913,0.4293918,57855.0,57851.0,0.36716373]
[1617750085313,0.4293918,57855.0,57837.0,0.10725655]
[1617750085314,0.00209843,57854.0,57849.0,0.36658036]
[1617750086114,0.00209843,57854.0,57848.0,0.36658163]
[1617750086115,1.0,57850.0,57848.0,0.36658163]
[1617750086413,0.10725655,57849.0,57848.0,0.36658163]
[1617750087013,0.10725655,57849.0,57847.0,0.36637662]
[1617750087614,0.10725655,57849.0,57848.0,0.06147168]
[1617750088016,1.0,57848.0,57847.0,0.36637662]
[1617750088214,1.10725655,57849.0,57847.0,0.36637662]
[1617750088418,1.10725655,57849.0,57846.0,0.36639507]
[1617750088615,1.0,57848.0,57846.0,0.36639507]
[1617750088816,1.0,57847.0,57845.0,0.36639701]
[1617750089416,0.10725655,57849.0,57845.0,0.36639701]
[1617750089617,0.10725655,57849.0,57843.0,0.06147478]
[1617750089618,0.10725655,57849.0,57847.0,0.36639451]
[1617750090016,0.10725655,57849.0,57848.0,0.3663931]
[1617750091019,0.10725655,57849.0,57848.0,0.42786724]
[1617750091416,1.10725655,57849.0,57848.0,0.42786724]
[1617750091618,1.10725655,57849.0,57848.0,0.06147414]
[1617750092018,1.10725655,57849.0,57842.0,0.48281561]
[1617750092019,1.10725655,57849.0,57846.0,0.36640151]
[1617750092217,1.22786655,57849.0,57846.0,0.36640151]
[1617750092618,1.22786655,57849.0,57845.0,0.36640076]
[1617750093018,1.0,57846.0,57844.0,0.36640091]
[1617750093622,1.0,57846.0,57845.0,0.36640309]
[1617750093820,1.0,57846.0,57842.0,0.035]
[1617750094319,1.0,57846.0,57845.0,0.36640161]
[1617750097022,1.0,57846.0,57844.0,0.36642154]
[1617750097222,1.14246,57846.0,57844.0,0.36642154]
[1617750097424,1.14246,57846.0,57842.0,0.14225655]
[1617750097824,1.0,57845.0,57842.0,0.14225655]
[1617750098024,0.93852412,57843.0,57842.0,0.14225655]
[1617750098225,1.0,57843.0,57842.0,0.14225655]
[1617750098425,0.10725655,57843.0,57842.0,0.14225655]
[1617750098627,0.10725655,57843.0,57842.0,0.10725655]
[1617750099627,0.10725655,57843.0,57841.0,0.36614681]
[1617750099827,0.07225655,57843.0,57841.0,0.36614681]
[1617750100228,1.0,57842.0,57840.0,0.36609105]
[1617750101230,1.0,57842.0,57839.0,0.366101]
[1617750101427,0.07225655,57843.0,57839.0,0.366101]
[1617750101627,1.0,57844.0,57839.0,0.520431]
[1617750101828,0.00209394,57850.0,57839.0,0.520431]
[1617750102030,1.0,57854.0,57839.0,0.520431]
[1617750102031,0.00209502,57854.0,57842.0,0.36607978]
[1617750102429,1.00209576,57856.0,57853.0,0.10725655]
[1617750102627,1.00209576,57856.0,57853.0,0.22560655]
[1617750103231,0.00209576,57856.0,57853.0,0.22560655]
[1617750103429,1.0,57854.0,57853.0,0.22560655]
[1617750104030,1.0,57854.0,57845.0,0.36607157]
[1617750104431,1.00209527,57854.0,57844.0,0.3660845]
[1617750104629,1.00209527,57854.0,57844.0,0.47334105]
[1617750104630,1.10725655,57846.0,57844.0,0.47334105]
[1617750104830,1.10725655,57846.0,57844.0,0.10725655]
[1617750106632,0.10725655,57846.0,57844.0,0.10725655]
[1617750107634,0.10725655,57846.0,57844.0,0.03945655]
[1617750109736,1.0,57845.0,57844.0,0.03945655]
[1617750110137,1.10725655,57846.0,57844.0,0.03945655]
[1617750110336,0.10725655,57846.0,57844.0,0.03945655]
[1617750112637,0.14045,57845.0,57844.0,0.03945655]
[1617750115039,0.10725655,57846.0,57844.0,0.03945655]
[1617750120047,0.10725655,57846.0,57841.0,0.36640348]
[1617750120249,1.0,57845.0,57841.0,0.36640348]
[1617750120447,1.0,57842.0,57841.0,0.36640348]
[1617750121450,1.0,57842.0,57841.0,0.81606488]
[1617750122552,1.01011633,57842.0,57841.0,0.81606488]
[1617750122952,1.0101146,57843.0,57841.0,0.81606488]
[1617750123354,1.0101146,57843.0,57842.0,0.81756286]
[1617750126757,1.0,57843.0,57842.0,0.81756286]
[1617750127259,1.01010261,57843.0,57842.0,0.81756286]
[1617750127757,1.30010886,57843.0,57842.0,0.81756286]
[1617750129960,1.30010886,57843.0,57842.0,0.36790329]
[1617750130362,1.30010886,57843.0,57842.0,0.81750394]
[1617750131963,1.30010886,57843.0,57842.0,0.36790329]
[1617750132363,1.30010886,57843.0,57842.0,0.42939999]
[1617750132763,1.30010886,57843.0,57842.0,0.36790329]
[1617750135068,1.65964205,57843.0,57842.0,0.81808442]
[1617750138769,0.65964205,57843.0,57842.0,0.81808442]
[1617750138970,1.65964205,57843.0,57842.0,0.81808442]
[1617750139672,1.90563492,57843.0,57842.0,0.81808442]
[1617750140476,1.90563492,57843.0,57842.0,0.36790329]
[1617750140873,1.90563492,57843.0,57842.0,0.81809101]
[1617750141373,1.90563492,57843.0,57842.0,0.36790329]
[1617750145380,1.90563492,57843.0,57842.0,0.81821903]
[1617750146881,1.0,57843.0,57836.0,0.14843]
[1617750147481,1.65894793,57843.0,57842.0,0.81875457]
[1617750149284,1.65894793,57843.0,57842.0,0.36843956]
[1617750149684,1.65894793,57843.0,57842.0,0.42993869]
[1617750150285,1.65894793,57843.0,57842.0,0.36843956]
[1617750150784,1.65894793,57843.0,57842.0,0.42993957]
[1617750151284,1.65894793,57843.0,57842.0,0.36843956]
[1617750157393,2.09889617,57843.0,57842.0,0.36843956]
[1617750157895,2.09889617,57843.0,57842.0,0.42993985]
[1617750158395,2.09889617,57843.0,57842.0,0.36843956]
[1617750158796,2.09889617,57843.0,57842.0,0.42993982]
[1617750159296,2.09889617,57843.0,57842.0,0.36843956]
[1617750163402,1.09889617,57843.0,57842.0,0.36843956]
[1617750164205,0.65894793,57843.0,57842.0,0.36843956]
[1617750168007,1.10030678,57843.0,57842.0,0.36843956]
[1617750168606,2.10030678,57843.0,57842.0,0.36843956]
[1617750168806,2.20770678,57843.0,57842.0,0.36843956]
[1617750169309,2.45371516,57843.0,57841.0,0.36848834]
[1617750169506,0.0525,57842.0,57841.0,0.36848834]
[1617750169707,1.3494857,57842.0,57840.0,0.36849516]
[1617750170309,1.3494857,57842.0,57831.0,0.06150209]
[1617750170310,1.10333764,57841.0,57839.0,0.36849954]
[1617750170507,1.10333764,57841.0,57839.0,1.86849954]
[1617750170708,0.441315,57841.0,57840.0,0.83209361]
[1617750170908,0.187715,57841.0,57840.0,2.60209361]
[1617750171109,0.24601293,57842.0,57840.0,2.60209361]
[1617750171110,0.00210961,57842.0,57840.0,4.37485442]
[1617750171308,0.36174756,57848.0,57840.0,4.37485442]
[1617750171711,0.36189166,57852.0,57840.0,4.14794991]
[1617750172110,0.36227435,57854.0,57851.0,0.8800995]
[1617750172309,0.36227435,57854.0,57852.0,0.33922]
[1617750172711,0.36252666,57856.0,57853.0,0.27]
[1617750172911,0.36252666,57856.0,57854.0,0.2]
[1617750173111,0.36252666,57856.0,57855.0,0.74566677]
[1617750173512,0.36252666,57856.0,57855.0,0.53715505]
[1617750173713,1.36252666,57856.0,57855.0,0.53715505]
[1617750174314,1.60849213,57856.0,57855.0,0.53715505]
[1617750175112,1.71574868,57856.0,57855.0,0.53715505]
[1617750178618,0.71574868,57856.0,57855.0,0.53715505]